[Event "Frauenbundesliga 2024-25"]
[Site "Germany"]
[Date "2025.01.26"]
[Round "4.3"]
[White "Peglau, Dora"]
[Black "Ziegenfuss, Antonia"]
[Result "1-0"]
[Annotator "TA"]
[ECO "B91"]
[WhiteElo "2022"]
[BlackElo "2174"]
[PlyCount "85"]
[EventDate "2024.11.06"]
[EventType "team-tourn"]
[EventCountry "GER"]
[SourceTitle "playchess.com"]
[Source "ChessBase"]
[SourceQuality "1"]
[TimeControl "40/5400+30:1800+30"]

{[%evp 19,85,0,32,-13,56,55,47,38,41,4,33,43,49,38,45,0,0,0,0,-12,50,50,48,45,48,52,70,58,68,8,15,15,10,13,61,54,62,51,46,50,56,47,104,86,77,77,110,95,187,168,722,702,701,715,685,679,685,685,685,685,658,617,489,444,6070,5895,6070,5698]} 1. e4 {[%emt 0:00:02]} c5 {[%emt 0:00:07]} 2. Nf3 {[%emt 0:00:05]} d6 {[%emt 0:01:30]} 3. Nc3 {[%emt 0:00:08]} a6 {[%emt 0:00:50]} 4. g3 {[%emt 0:01:43]} Nc6 {[%emt 0:06:45]} 5. Bg2 {[%emt 0:02:41]} g6 {[%emt 0:00:36]} 6. d4 {[%emt 0:01:05]} cxd4 {[%emt 0:02:19]} 7. Nxd4 {[%emt 0:00:06]} Bg7 {[%emt 0:01:59]} 8. Be3 {[%emt 0:01:16]} Bd7 {[%emt 0:04:11]} 9. O-O {[%emt 0:02:07]} Nf6 {[%emt 0:01:47]} 10. h3 {[%emt 0:01:20]} O-O {[%emt 0:01:33]} 11. Kh2 {[%emt 0:04:03]} Ne5 {[%emt 0:07:02]} (11... Rc8 $11) 12. b3 $1 $14 {[%emt 0:07:08]} Rc8 {[%emt 0:05:18]} 13. Nd5 {[%emt 0:02:47] White is slightly better.} b5 {[%emt 0:01:16]} 14. Rc1 {[%emt 0:06:45]} e6 {[%emt 0:12:57]} 15. Nxf6+ {[%emt 0:01:35]} Bxf6 {[%emt 0:00:12]} 16. f4 {[%emt 0:05:37]} Nc6 {[%emt 0:00:52]} 17. Nxc6 {[%emt 0:02:20]} Bxc6 {[%emt 0:00:58]} 18. c4 {[%emt 0:01:01]} bxc4 {[%emt 0:12:26]} 19. Rxc4 {[%emt 0:00:31]} Bb5 {[%emt 0:12:41]} (19... d5 $11 20. exd5 exd5) 20. Rxc8 {[%emt 0:00:07]} Qxc8 {[%emt 0:00:04]} 21. Rf2 {[%emt 0:00:06][%cal Oa2a4]} Qc3 {[%emt 0:00:59]} 22. Bb6 {[%emt 0:06:32][%cal Of2c2]} Qb4 {[%emt 0:04:34][%cal Ob5e2]} 23. Bc7 $1 {[%emt 0:05:41]} Bd4 {[%emt 0:01:52]} 24. Rd2 {[%emt 0:01:04]} (24. Ba5 $14 Qxa5 25. Qxd4) 24... e5 $11 {[%emt 0:00:15] [#]} 25. Bxd6 $1 {[%emt 0:01:47]} Qxd6 {[%emt 0:00:23]} 26. fxe5 {[%emt 0:00:04]} Bg1+ {[%emt 0:02:08]} 27. Kxg1 $14 {[%emt 0:00:05]} Qxe5 {[%emt 0:00:04]} 28. Kh2 {[%emt 0:01:04]} (28. Qg4 {is interesting.} f5 29. Qg5 Kg7 30. Rf2) 28... Rc8 {[%emt 0:02:17]} 29. a4 $36 {[%emt 0:07:09][%mdl 2048] White has some pressure.} Be8 {[%emt 0:03:19]} 30. Rd5 {[%emt 0:06:23]} Qb2 {[%emt 0:03:30]} ({Better is} 30... Qc3 $14) 31. Rd8 $16 {[%emt 0:00:22]} Rxd8 {[%emt 0:00:11]} 32. Qxd8 {[%emt 0:00:05][%mdl 4096] Endgame. KQB-KQB} Qe5 {[%emt 0:00:24] [#]} 33. Qd5 $1 {[%emt 0:04:17]} Qxd5 {[%emt 0:05:04]} (33... Qb8 $16 {might work better.}) 34. exd5 {[%emt 0:00:01][%cal Be4d5,Bd5d6][%mdl 32] KB-KB} f5 $2 {[%emt 0:00:06]} (34... a5 35. Kg1 Kf8) 35. a5 $18 {[%emt 0:12:40] White is clearly winning.} Bb5 {[%emt 0:04:57] Inhibits Bf1.} 36. d6 {[%emt 0:02:38]} Kf8 {[%emt 0:00:53]} 37. Bd5 {[%emt 0:00:15]} Ke8 {[%emt 0:01:05]} 38. Bc4 {[%emt 0:00:53] And now Bxb5+ would win.} Bc6 {[%emt 0:00:41]} 39. Bxa6 {[%emt 0:00:32] b4 would now be deadly.} Kd7 {[%emt 0:00:12]} 40. b4 {[%emt 0:07:56] Threatens to win with Bf1.} Be4 {[%emt 0:00:28]} 41. Bf1 {[%emt 0:32:37] a6 is the strong threat.} Kxd6 {[%emt 0:05:34]} (41... g5 $142 42. Kg1 Ba8) 42. a6 {[%emt 0:00:00]} Kc7 {[%emt 0:05:41]} 43. Bg2 {[%emt 0:00:00] Weighted Error Value: White=0.12 (very precise) /Black=0.25 (precise) .  Mistake:       	White=1     	Black=6      Inaccurate:     	White=2     	Black=2      OK:         	White=6     	Black=8      Best:        	White=7     	Black=1      Strong:       	White=3     	---} 1-0

[Event "Frauenbundesliga 2024-25"]
[Site "Germany"]
[Date "2025.01.26"]
[Round "4.4"]
[White "Atalik, Ekaterina"]
[Black "Bashylina, Luisa"]
[Result "1/2-1/2"]
[Annotator "TA"]
[ECO "A25"]
[WhiteElo "2395"]
[BlackElo "2142"]
[PlyCount "121"]
[EventDate "2024.11.06"]
[EventType "team-tourn"]
[EventCountry "GER"]
[SourceTitle "playchess.com"]
[Source "ChessBase"]
[SourceQuality "1"]
[TimeControl "40/5400+30:1800+30"]

{[%evp 16,121,0,0,0,-25,-25,-31,-32,-37,-20,-10,-18,-16,0,-8,-5,0,0,0,0,5,2,1,12,15,18,17,22,15,60,43,50,23,75,72,67,83,86,65,68,68,66,65,65,65,65,53,58,65,51,48,92,89,106,69,105,91,104,98,135,69,69,69,69,69,69,69,69,69,69,69,69,15,15,15,70,69,69,13,14,14,14,14,20,21,16,12,21,27,29,13,14,8,8,8,8,0,0,0,0,0,0,0,0,0,0,0]} 1. c4 {[%emt 0:00:04]} e5 {[%emt 0:00:04]} 2. Nc3 {[%emt 0:00:15]} Bb4 {[%emt 0:00:05]} 3. g3 {[%emt 0:00:41]} Bxc3 {[%emt 0:00:06]} 4. bxc3 {[%emt 0:00:50]} d6 {[%emt 0:00:27]} 5. Bg2 {[%emt 0:00:31]} f5 {[%emt 0:00:38]} 6. d3 {[%emt 0:05:06]} Nc6 {[%emt 0:03:24]} 7. Rb1 {[%emt 0:04:09]} Nf6 {[%emt 0:01:46]} 8. Nf3 {[%emt 0:02:47]} O-O {[%emt 0:00:07]} 9. O-O {[%emt 0:00:04]} Qe8 {[%emt 0:00:49] A25: English Opening vs King's Indian with ...Nc6 but without early d3.} 10. Ne1 {[%emt 0:04:30]} b6 {[%emt 0:01:27]} 11. Nc2 {[%emt 0:00:44]} Rb8 {[%emt 0:07:28] Black is slightly better.} 12. Ne3 {[%emt 0:01:45]} Ne7 {[%emt 0:06:41]} 13. Nd5 {[%emt 0:04:04]} Nexd5 {[%emt 0:02:51]} 14. cxd5 {[%emt 0:00:11]} Bd7 {[%emt 0:09:06]} 15. c4 $146 {[%emt 0:01:42]} (15. f4 e4 16. c4 Qh5 17. d4 b5 18. Qc2 bxc4 19. Rxb8 Rxb8 20. Qxc4 Rb7 21. Qa6 {1-0 Wang,H (2724)-Vitiugov,N (2722) CHN-RUS Summit Men 7th Rapid 2010 (17)}) 15... c5 {[%emt 0:02:55] Not much happening anymore} 16. dxc6 {[%emt 0:02:49]} Bxc6 {[%emt 0:00:05]} 17. Bxc6 {[%emt 0:00:47]} Qxc6 {[%emt 0:00:05]} 18. Qb3 {[%emt 0:00:42]} Nd7 {[%emt 0:10:09]} 19. Qb5 {[%emt 0:17:01] Prevents Nc5.} Rbc8 {[%emt 0:03:32]} 20. a4 {[%emt 0:03:39]} Nc5 {[%emt 0:04:39]} 21. a5 {[%emt 0:00:38]} bxa5 {[%emt 0:05:04]} 22. Qxa5 {[%emt 0:00:19]} Rf7 {[%emt 0:02:25]} 23. Ba3 {[%emt 0:05:23]} Ne6 {[%emt 0:05:44]} 24. Rb2 {[%emt 0:01:49]} f4 {[%emt 0:05:20]} (24... Nd4 $11 {keeps the balance.}) 25. Qd5 $16 {[%emt 0:06:59]} Qxd5 {[%emt 0:02:52]} 26. cxd5 {[%emt 0:00:33]} Nc5 {[%emt 0:00:50]} 27. gxf4 {[%emt 0:07:13]} Rxf4 {[%emt 0:01:52]} 28. Rc1 {[%emt 0:00:15]} Rd4 {[%emt 0:07:10]} 29. Bxc5 {[%emt 0:01:58]} Rxc5 {[%emt 0:00:12]} 30. Rxc5 {[%emt 0:03:19]} dxc5 $14 {[%emt 0:00:04][%mdl 4096] Endgame KR-KR} 31. Rb8+ {[%emt 0:03:25]} Kf7 {[%emt 0:00:12][%cal Oe5e4]} 32. Rb7+ {[%emt 0:00:06]} Kf6 {[%emt 0:00:44]} 33. Rxa7 {[%emt 0:00:25]} Rxd5 {[%emt 0:00:34]} 34. Rc7 {[%emt 0:00:07]} h5 {[%emt 0:13:29][%cal Bh7h5,Bh5h4][%mdl 32]} 35. f3 {[%emt 0:01:24] White is more active.} g6 {[%emt 0:01:05][%cal Bg7g6,Bg6g5][%mdl 32]} 36. Kf2 {[%emt 0:01:00]} Kg5 {[%emt 0:01:37]} 37. Rc6 {[%emt 0:00:49]} h4 {[%emt 0:01:54] [#]} 38. Ke3 {[%emt 0:01:45]} (38. h3 $1 $16) 38... Kf5 {[%emt 0:00:25]} 39. h3 {[%emt 0:04:14]} Rd4 {[%emt 0:01:30]} 40. Rxc5 {[%emt 0:00:32]} g5 $1 {[%emt 0:00:30]} 41. Rc6 {[%emt 0:30:30]} Ra4 {[%emt 0:30:30]} 42. Kf2 {[%emt 0:00:30] [#] White threatens e4+ and mate.} Ra2 $1 {[%emt 0:00:30]} 43. Rd6 {[%emt 0:00:30]} Rd2 {[%emt 0:00:30]} 44. Rd8 {[%emt 0:00:30]} (44. Ra6 $14) 44... Rd1 $1 $11 {[%emt 0:00:30]} 45. Rd5 {[%emt 0:00:30]} Ke6 {[%emt 0:00:30]} (45... Kf6 $1 $11) 46. Ra5 {[%emt 0:00:30]} Kf5 {[%emt 0:00:00]} 47. Ke3 {[%emt 0:16:26]} (47. Ra6 $14 Rd2 48. Ke3) 47... Rh1 48. d4 {[%emt 0:00:00]} Rxh3 {[%emt 0:00:00]} 49. Rxe5+ {[%emt 0:00:00]} Kf6 {[%emt 0:00:00]} 50. Kf2 {[%emt 0:00:00]} Rh1 $1 {[%emt 0:00:00]} 51. Ra5 {[%emt 0:00:00]} Rd1 {[%emt 0:00:00]} 52. Ra6+ {[%emt 0:00:00]} Kg7 {[%emt 0:00:00]} 53. Rd6 {[%emt 0:00:00]} Rd2 {[%emt 0:00:00] The position is equal.} 54. d5 {[%emt 0:00:00]} Kf7 {[%emt 0:00:00]} 55. Ke3 {[%emt 0:00:26]} Rd1 {[%emt 0:02:01]} 56. Ke4 {[%emt 0:02:35] Kf5 is the strong threat.} Kg7 {[%emt 0:01:39]} 57. Rd7+ {[%emt 0:01:01]} Kg6 {[%emt 0:00:24]} 58. Rd8 {[%emt 0:00:26]} Kg7 {[%emt 0:00:15]} 59. Rd7+ {[%emt 0:00:35]} Kg6 {[%emt 0:00:05]} 60. Rd8 {[%emt 0:00:45]} Kg7 {[%emt 0:00:17]} 61. Rd7+ {[%emt 0:00:34] Weighted Error Value: White=0.10 (very precise) /Black=0.08 (flawless)   Mistake:       	White=3     	Black=2      Inaccurate:     	White=2     	Black=4      OK:         	White=20    	Black=17     Best:        	---       	Black=5      Strong:       	---       	Black=4} 1/2-1/2

[Event "Frauenbundesliga 2024-25"]
[Site "Germany"]
[Date "2025.01.26"]
[Round "4.4"]
[White "Fuchs, Judith"]
[Black "Braeutigam, Katerina"]
[Result "1-0"]
[Annotator "TA"]
[ECO "A01"]
[WhiteElo "2226"]
[BlackElo "1947"]
[PlyCount "69"]
[EventDate "2024.11.06"]
[EventType "team-tourn"]
[EventCountry "GER"]
[SourceTitle "playchess.com"]
[Source "ChessBase"]
[SourceQuality "1"]
[TimeControl "40/5400+30:1800+30"]

{[%evp 12,69,-3,-5,0,-49,4,-25,-21,-37,-36,-93,-27,-62,-10,-50,-2,-29,-47,-31,-21,-18,15,22,87,67,99,-31,-48,-35,-48,-85,75,-14,25,0,0,0,0,0,669,671,662,658,617,623,797,739,729,723,686,556,720,729,1114,1071,1361,760,1929,1929]} 1. b3 {[%emt 0:00:02]} e5 {[%emt 0:00:06]} 2. Bb2 {[%emt 0:00:05]} Nc6 {[%emt 0:00:08]} 3. e3 {[%emt 0:00:12]} Nf6 {[%emt 0:00:10]} 4. c4 {[%emt 0:00:55]} d5 {[%emt 0:00:19]} 5. cxd5 {[%emt 0:00:11]} Nxd5 {[%emt 0:00:16]} 6. a3 {[%emt 0:00:04]} Bd6 {[%emt 0:00:32]} 7. Qc2 {[%emt 0:00:30]} Qe7 {[%emt 0:01:20]} 8. b4 {[%emt 0:03:49]} (8. Bd3 $11) 8... a6 {[%emt 0:01:05]} (8... O-O $15) 9. Bc4 {[%emt 0:01:24]} Nb6 {[%emt 0:04:47] Black has an edge.} 10. Bb3 {[%emt 0:01:47]} O-O {[%emt 0:07:11]} 11. d3 {[%emt 0:06:22]} (11. Nf3 $15) 11... Kh8 {[%emt 0:17:13]} (11... a5 $17 12. bxa5 Nxa5) 12. Nd2 {[%emt 0:03:09]} f5 {[%emt 0:07:28]} ({Better is} 12... a5 $15 13. b5 a4 14. bxc6 (14. Ba2 Na7 $17) 14... axb3 15. Qxb3 bxc6) 13. Ngf3 {[%emt 0:02:11]} (13. Ne2 $5) 13... Bd7 {[%emt 0:03:22]} (13... a5 $15) 14. h4 {[%emt 0:08:32]} (14. O-O $5) 14... a5 {[%emt 0:22:00]} 15. b5 {[%emt 0:09:16]} a4 {[%emt 0:00:43]} 16. Ba2 {[%emt 0:01:23]} Nd8 {[%emt 0:12:49]} 17. h5 {[%emt 0:12:57]} Bxb5 {[%emt 0:06:32]} (17... Bxa3 $2 18. Nxe5 Be6 19. Bxa3 $18 (19. Ng6+ hxg6 20. Bxa3 Qf6 $18)) (17... c6 $11 {remains equal.}) 18. Nh4 $1 $16 {[%emt 0:00:23]} Be8 {[%emt 0:00:31] [#] Wards off Ng6+} (18... Bxa3 19. Ng6+ hxg6 20. hxg6+) 19. Ng6+ {[%emt 0:06:35]} Bxg6 $15 {[%emt 0:00:12]} 20. hxg6 {[%emt 0:00:01][%csl Gg6][%cal Rh1h7]} h6 {[%emt 0:00:18][%cal Of8f6]} 21. f4 {[%emt 0:01:24]} Qf6 $2 {[%emt 0:07:31] [#]} (21... Rf6 $17 {[%cal Od8c6] stays on course. aiming for ...Nc6!} 22. g4 (22. Nf3 $2 exf4 23. Bxf6 Qxf6 $17) 22... Nc6 (22... Bxa3 23. Bxa3 Qxa3 24. Qxc7 $14) (22... fxg4 23. Ne4 $15)) 22. Nf3 {[%emt 0:02:11] White is more active.} (22. g4 $1 $16 {[%cal Rg4g5]}) 22... Qxg6 {[%emt 0:02:52]} 23. fxe5 {[%emt 0:03:34]} Be7 {[%emt 0:01:41]} 24. Qxc7 {[%emt 0:16:42]} Qxg2 {[%emt 0:02:25]} 25. Qxe7 $40 {[%emt 0:05:03][%mdl 128] White attacks.} Qxh1+ $4 {[%emt 0:00:38][%mdl 8192]} ({Wrong is} 25... Nc6 $2 26. Qd6 Qxh1+ 27. Kf2 $18) (25... Qg3+ $11 26. Ke2 (26. Kd2 Qf2+ 27. Kc1 Rc8+ 28. Bc4 Qxe3+ 29. Kc2 Nc6 $17) 26... Qg2+ 27. Ke1 Qg3+ (27... Qxh1+ $2 {perishes.} 28. Kf2 $18) (27... Nc6 $2 28. Qd6 $18) 28. Ke2 (28. Kd2 Qf2+ 29. Kc1 Rc8+ 30. Bc4 Qxe3+ 31. Kc2 Nc6 $17) 28... Qg2+ 29. Ke1 Qg3+ (29... Qxh1+ $2 30. Kf2 $18) (29... Nc6 $2 30. Qd6 $18) 30. Ke2 (30. Kd2 Qf2+ 31. Kc1 Rc8+ 32. Bc4 Qxe3+ 33. Kc2 Nc6 $19)) 26. Kf2 $18 {[%emt 0:00:15] White is clearly winning.} Nc6 {[%emt 0:00:47] White must now prevent ...Qxf3+.} 27. Qxf8+ {[%emt 0:01:15]} Rxf8 {[%emt 0:00:06]} 28. Rxh1 {[%emt 0:00:03]} Nd7 {[%emt 0:00:46]} 29. d4 {[%emt 0:02:53]} Re8 {[%emt 0:00:31]} 30. Bb1 {[%emt 0:00:45]} Ne7 {[%emt 0:00:27]} 31. Bd3 {[%emt 0:01:33]} Rc8 {[%emt 0:00:36]} 32. Nh4 {[%emt 0:01:35]} g6 {[%emt 0:00:21]} 33. Rg1 {[%emt 0:03:21]} Rg8 {[%emt 0:00:42]} 34. Rc1 {[%emt 0:01:20] And now Rc7 would win.} Nc6 {[%emt 0:00:25]} 35. e6 {[%emt 0:00:34] Weighted Error Value: White=0.31/Black=0.51.  Loses game:     	---       	Black=1      Mistake:       	White=4     	Black=6      Inaccurate:     	White=5     	Black=4      OK:         	White=5     	Black=6      Best:        	White=1     	Black=2      Strong:       	White=1     	---} 1-0

[Event "Frauenbundesliga 2024-25"]
[Site "Germany"]
[Date "2025.01.26"]
[Round "4.4"]
[White "Polterauer, Chiara"]
[Black "Melamed, Tatjana"]
[Result "1/2-1/2"]
[Annotator "TA"]
[ECO "B49"]
[WhiteElo "2098"]
[BlackElo "2353"]
[PlyCount "116"]
[EventDate "2024.11.06"]
[EventType "team-tourn"]
[EventCountry "GER"]
[SourceTitle "playchess.com"]
[Source "ChessBase"]
[SourceQuality "1"]
[TimeControl "40/5400+30:1800+30"]

{[%evp 20,116,3,0,0,0,21,-2,-6,-7,-10,-14,-8,-17,-6,-22,0,-4,-6,-22,-36,-23,-29,-42,-29,-39,-36,-42,-37,-55,-43,-79,-68,-80,-39,-49,-35,-50,-37,-49,-39,-37,-25,-22,-23,-27,-24,-23,-29,-28,0,-21,-17,-37,-43,-42,-36,-37,-31,-25,-23,-38,-27,-24,-36,-35,-33,-39,-39,-34,-36,-35,-31,-38,-22,-22,-23,-22,-19,-19,-21,-35,0,-8,-9,-9,-17,-16,-8,-8,-6,-6,-6,-6,-6,-6,-6,-6,0]} 1. e4 {[%emt 0:00:03]} c5 {[%emt 0:00:10]} 2. Nf3 {[%emt 0:00:06]} e6 {[%emt 0:00:03]} 3. d4 {[%emt 0:00:07]} cxd4 {[%emt 0:00:05]} 4. Nxd4 {[%emt 0:00:04]} Nc6 {[%emt 0:00:03]} 5. Nc3 {[%emt 0:00:33]} Qc7 {[%emt 0:00:05]} 6. Be2 {[%emt 0:01:19]} a6 {[%emt 0:01:22]} 7. Be3 {[%emt 0:02:17]} Nf6 {[%emt 0:01:26]} 8. O-O {[%emt 0:07:23]} Bb4 {[%emt 0:09:51]} 9. Na4 {[%emt 0:03:38]} Be7 {[%emt 0:01:00]} 10. Nc3 {[%emt 0:05:34]} O-O {[%emt 0:03:00]} 11. a3 {[%emt 0:07:51]} d6 {[%emt 0:04:22] B49: Sicilian: Taimanov: 5 Nc3 Qc7 6 Be3 a6 7 Be2.} 12. f4 {[%emt 0:01:59]} Bd7 {[%emt 0:10:00]} 13. Kh1 {[%emt 0:00:21]} Nxd4 {[%emt 0:02:23]} 14. Bxd4 {[%emt 0:01:58]} Bc6 {[%emt 0:00:46]} 15. Bf3 {[%emt 0:00:14]} Rad8 $146 {[%emt 0:05:01]} (15... Rfe8 16. Bf2 Rad8 17. Qe2 e5 18. Bg3 b5 19. Rfd1 Qb8 20. Na2 a5 21. Qe1 Qc7 22. Rac1 exf4 23. Bxf4 {1-0 Cai,J (1584)-Masoumi,S (1902) Wch FIDE Online U14 Girls Asia qual rapid 2020 (4)}) 16. Qe1 {[%emt 0:04:50]} e5 {[%emt 0:05:36]} 17. Be3 {[%emt 0:04:57]} exf4 {[%emt 0:01:44]} 18. Bxf4 {[%emt 0:00:07]} Nd7 {[%emt 0:00:02]} 19. Nd5 {[%emt 0:08:31]} Bxd5 {[%emt 0:00:18]} 20. exd5 {[%emt 0:00:04]} Bf6 {[%emt 0:02:19]} 21. c3 {[%emt 0:05:11]} Rde8 {[%emt 0:02:38]} 22. Qf2 {[%emt 0:01:09]} Be5 {[%emt 0:01:28]} 23. Bd2 {[%emt 0:02:01]} f5 {[%emt 0:02:05]} 24. Bd1 {[%emt 0:04:36]} Nf6 {[%emt 0:05:10]} 25. Bc2 {[%emt 0:04:12]} (25. Qxf5 $2 Ne4 (25... Nxd5 26. Qd3 $14) 26. Be3 Rxf5 $19) 25... g6 {[%emt 0:02:26]} (25... Nxd5 $2 26. Bb3 $18) 26. Qh4 {[%emt 0:02:00] Wards off Ng4} Kh8 {[%emt 0:12:24][%cal Of6e4]} (26... Nxd5 $2 27. Bb3 $18) (26... Qb6 {is interesting.} 27. Rab1 Ng4 28. h3 Bf6) 27. Rad1 {[%emt 0:03:08]} b5 {[%emt 0:02:41][%cal Oc7c4]} 28. Bg5 {[%emt 0:01:35]} Qc4 {[%emt 0:04:54]} 29. Rfe1 {[%emt 0:05:50]} Qxh4 {[%emt 0:06:05]} (29... Nxd5 $2 {too greedy.} 30. Qxc4 bxc4 31. Rxd5 $18) 30. Bxh4 {[%emt 0:00:06]} Nd7 {[%emt 0:01:09]} 31. Bf2 {[%emt 0:02:22]} Rc8 {[%emt 0:03:45]} 32. Bd3 {[%emt 0:03:05]} Nf6 {[%emt 0:01:34]} 33. Bc2 {[%emt 0:03:47]} Rc4 {[%emt 0:03:39]} 34. Bb3 {[%emt 0:01:37]} Rcc8 {[%emt 0:02:24][%cal Bc4c8,Bc8e8,Be8e2][%mdl 32]} 35. Bc2 {[%emt 0:00:23]} Kg7 {[%emt 0:00:10]} 36. Re2 {[%emt 0:02:57]} Rfe8 {[%emt 0:01:42][%cal Oe5c3] ...Bxc3! would now be deadly.} 37. Bh4 {[%emt 0:01:14]} Ng4 {[%emt 0:01:15]} 38. h3 {[%emt 0:02:07]} Bf6 {[%emt 0:01:18]} 39. Rxe8 {[%emt 0:02:07]} Rxe8 {[%emt 0:00:06]} 40. hxg4 {[%emt 0:01:22] [#] Black must now prevent Bxf6+.} Bxh4 {[%emt 0:00:22]} 41. gxf5 $15 {[%emt 0:31:11][%mdl 4096] Endgame KRB-KRB. White is a pawn up.} Re2 {[%emt 0:31:56]} 42. Bd3 {[%emt 0:00:52]} Rxb2 {[%emt 0:01:30]} 43. fxg6 {[%emt 0:00:24]} hxg6 {[%emt 0:00:27]} 44. c4 {[%emt 0:02:45]} Rb3 {[%emt 0:00:00]} 45. cxb5 {[%emt 0:00:00]} axb5 {[%emt 0:00:00][%cal Oh4f2]} ({Much worse is} 45... Rxa3 $6 46. bxa6 Bg3 47. Kg1 $16) 46. Kg1 {[%emt 0:00:00]} Bg3 {[%emt 0:00:00]} 47. Kf1 {[%emt 0:00:00]} Kf6 {[%emt 0:00:00]} 48. Ke2 {[%emt 0:00:00]} g5 {[%emt 0:00:00]} 49. Kf3 {[%emt 0:00:00]} Bf4 {[%emt 0:00:00]} 50. Ke4 {[%emt 0:00:00]} Rb2 {[%emt 0:00:00]} 51. Rg1 {[%emt 0:00:00] The position is equal.} b4 {[%emt 0:00:00]} 52. g3 {[%emt 0:00:00]} Be5 {[%emt 0:00:00]} 53. Rf1+ {[%emt 0:00:00]} Ke7 {[%emt 0:00:00]} 54. axb4 {[%emt 0:00:00]} Rxb4+ {[%emt 0:00:00]} 55. Kf5 {[%emt 0:00:00]} Bxg3 {[%emt 0:00:00]} 56. Kxg5 {[%emt 0:00:00]} Rd4 {[%emt 0:00:00]} 57. Bf5 {[%emt 0:00:00]} Rxd5 {[%emt 0:00:00]} 58. Rh1 {[%emt 0:00:27]} Re5 {[%emt 0:00:00] Weighted Error Value: White=0.05 (flawless) /Black=0.06 (flawless)   Inaccurate:     	White=1     	Black=2      OK:         	White=24    	Black=22     Best:        	White=2     	---} 1/2-1/2

[Event "Frauenbundesliga 2024-25"]
[Site "Germany"]
[Date "2025.01.26"]
[Round "4.5"]
[White "Savina, Anastasia"]
[Black "Stangl, Anita"]
[Result "1-0"]
[Annotator "TA"]
[ECO "A84"]
[WhiteElo "2318"]
[BlackElo "2027"]
[PlyCount "51"]
[EventDate "2024.11.06"]
[EventType "team-tourn"]
[EventCountry "GER"]
[SourceTitle "playchess.com"]
[Source "ChessBase"]
[SourceQuality "1"]
[TimeControl "40/5400+30:1800+30"]

{[%evp 12,50,17,14,44,28,58,45,60,16,22,-1,181,165,172,163,166,109,119,131,160,115,276,276,444,282,485,484,600,602,2797,2460,2644,2587,29993,29994,29994,29995,29998,29999,29999]} 1. d4 {[%emt 0:00:07]} e6 {[%emt 0:00:04]} 2. c4 {[%emt 0:00:08]} d5 {[%emt 0:00:16]} 3. Nc3 {[%emt 0:00:16]} c6 {[%emt 0:00:18]} 4. e3 {[%emt 0:00:26]} f5 {[%emt 0:05:02]} 5. Bd3 {[%emt 0:01:15]} Nf6 {[%emt 0:03:27]} 6. f3 {[%emt 0:02:09]} Bd6 {[%emt 0:04:07]} 7. Nge2 {[%emt 0:00:26]} Qc7 {[%emt 0:05:48] A84: Dutch Defence: 2 c4 Miscellaneous.} 8. c5 {[%emt 0:22:40]} Be7 {[%emt 0:12:43]} 9. O-O $146 {[%emt 0:01:16]} (9. e4 O-O 10. e5 Ne8 11. Be3 b5 12. h4 b4 13. Nb1 Ba6 14. Bg5 Bxd3 15. Qxd3 Bxg5 16. hxg5 {1-0 Khaidorov,V (2281)-Diaz Soro,J (1809) Vilafranca del Penedes op 7th 2013 (6)}) 9... e5 {[%emt 0:02:42] White is slightly better.} 10. dxe5 {[%emt 0:06:03]} Qxe5 {[%emt 0:01:09]} 11. b4 {[%emt 0:05:36][%cal Oe3e4]} b6 $2 {[%emt 0:02:22] [#]} (11... a5 $11 {and Black stays safe.}) 12. e4 $1 $36 {[%emt 0:12:19][%mdl 2560] White is on the roll.} fxe4 {[%emt 0:06:08]} 13. Bf4 {[%emt 0:00:55]} Qh5 {[%emt 0:01:43]} 14. fxe4 {[%emt 0:10:38] White sacrificed a pawn} (14. Ng3 $18 Qf7 15. fxe4) 14... bxc5 {[%emt 0:01:15]} 15. exd5 {[%emt 0:04:25]} cxb4 {[%emt 0:08:17] [#]} 16. d6 $1 {[%emt 0:03:51]} bxc3 {[%emt 0:10:34]} (16... Bd8 $16) 17. dxe7 {[%emt 0:00:23][%cal Od3f5] Bf5! would now be deadly.} Kxe7 $2 {[%emt 0:04:23]} (17... Nbd7 {was worth a try.} 18. Bd6 (18. Nxc3 Qc5+ 19. Kh1 Qxc3 $18) 18... Qd5) 18. Rb1 {[%emt 0:14:11]} ({Not} 18. Nxc3 Qxd1 (18... Qc5+ 19. Kh1 $11) 19. Raxd1 Be6 $18) 18... Nbd7 $2 {[%emt 0:04:02] [#]} (18... Rd8 19. Bc7 (19. Rxb8 Rxb8 20. Bxb8 Qc5+ 21. Kh1 Ba6 $14) (19. Bxb8 Rxb8 20. Rxb8 Ng4 $16) 19... Rd7) 19. Bf5 $1 {[%emt 0:04:07] This pair of bishops is nice.} Nd5 {[%emt 0:09:33] [#]} (19... Nb6 20. Qd6+) 20. Qe1 $1 {[%emt 0:03:28] Intending Nd4+ and mate.} Kd8 {[%emt 0:06:18][%cal Be7d8,Bd8c7,Bc7b7,Bb7a6][%mdl 32]} (20... Re8 21. Ng3+) 21. Nd4 {[%emt 0:02:46][%cal Rd4c6]} Nxf4 {[%emt 0:03:38]} 22. Rxf4 {[%emt 0:00:40]} Nb6 {[%emt 0:04:13]} 23. Nxc6+ {[%emt 0:01:04] White mates.} Kc7 {[%emt 0:00:01]} 24. Qe5+ {[%emt 0:00:24]} Kb7 {[%emt 0:01:59]} 25. Na5+ {[%emt 0:00:06]} Ka6 {[%emt 0:00:48]} 26. Qb5# {[%emt 0:00:06] Weighted Error Value: White=0.23 (precise) /Black=1.35  Loses game:     	---       	Black=2      Mistake:       	White=1     	Black=2      Inaccurate:     	White=2     	Black=2      OK:         	White=3     	Black=3      Best:        	White=2     	---        Strong:       	White=1     	---        Brilliant:      	White=1     	---} 1-0